fUSD/lending_fUSD_20260522
["ID","MTS","AMOUNT","RATE_DAILY","PERIOD"]
[422810663,1779441044000,-3269.18168498,0.00013698,2]
[422810681,1779441044000,-500.0,0.00013698,2]
[422810660,1779441044000,-3268.97,0.00013698,2]
[422810661,1779441044000,-3268.97,0.00013698,2]
[422810665,1779441044000,-500.0,0.00013698,2]
[422810667,1779441044000,-500.0,0.00013698,2]
[422810666,1779441044000,-500.0,0.00013698,2]
[422810664,1779441044000,-538.05787571,0.00013698,2]
[422810668,1779441044000,-500.0,0.00013698,2]
[422810669,1779441044000,-500.0,0.00013698,2]
[422810680,1779441044000,-500.0,0.00013698,2]
[422810679,1779441044000,-500.0,0.00013698,2]
[422810674,1779441044000,-500.0,0.00013698,2]
[422810676,1779441044000,-500.0,0.00013698,2]
[422810678,1779441044000,-500.0,0.00013698,2]
[422810671,1779441044000,-500.0,0.00013698,2]
[422810677,1779441044000,-500.0,0.00013698,2]
[422810673,1779441044000,-500.0,0.00013698,2]
[422810675,1779441044000,-500.0,0.00013698,2]
[422810670,1779441044000,-500.0,0.00013698,2]
[422810672,1779441044000,-500.0,0.00013698,2]
[422810744,1779441045000,-713.56,0.00013698,2]
[422810750,1779441045000,-500.0,0.00013698,2]
[422810745,1779441045000,-713.56,0.00013698,2]
[422810749,1779441045000,-500.0,0.00013698,2]
[422810747,1779441045000,-713.56,0.00013698,2]
[422810741,1779441045000,-713.56,0.00013698,2]
[422810748,1779441045000,-713.70409866,0.00013698,2]
[422810742,1779441045000,-713.56,0.00013698,2]
[422810743,1779441045000,-713.56,0.00013698,2]
[422810740,1779441045000,-713.56,0.00013698,2]
[422810746,1779441045000,-713.56,0.00013698,2]
[422810752,1779441045000,-500.0,0.00013698,2]
[422810773,1779441045000,-500.0,0.00013698,2]
[422810754,1779441045000,-500.0,0.00013698,2]
[422810751,1779441045000,-500.0,0.00013698,2]
[422810758,1779441045000,-500.0,0.00013698,2]
[422810757,1779441045000,-500.0,0.00013698,2]
[422810756,1779441045000,-500.0,0.00013698,2]
[422810755,1779441045000,-500.0,0.00013698,2]
[422810761,1779441045000,-350.56333019,0.00013698,2]
[422810759,1779441045000,-500.0,0.00013698,2]
[422810760,1779441045000,-150.06581077,0.00013698,2]
[422810762,1779441045000,-500.0,0.00013698,2]
[422810764,1779441045000,-500.0,0.00013698,2]
[422810739,1779441045000,-713.56,0.00013698,2]
[422810753,1779441045000,-500.0,0.00013698,2]
[422810731,1779441045000,-500.0,0.00013698,2]
[422810720,1779441045000,-713.56,0.00013698,2]
[422810737,1779441045000,-713.56,0.00013698,2]
[422810772,1779441045000,-500.0,0.00013698,2]
[422810711,1779441045000,-500.0,0.00013698,2]
[422810712,1779441045000,-500.0,0.00013698,2]
[422810713,1779441045000,-500.0,0.00013698,2]
[422810714,1779441045000,-500.0,0.00013698,2]
[422810716,1779441045000,-500.0,0.00013698,2]
[422810717,1779441045000,-523.75497223,0.00013698,2]
[422810715,1779441045000,-500.0,0.00013698,2]
[422810718,1779441045000,-500.0,0.00013698,2]
[422810719,1779441045000,-616.9808049,0.00013698,2]
[422810722,1779441045000,-713.56,0.00013698,2]
[422810724,1779441045000,-713.56,0.00013698,2]
[422810723,1779441045000,-713.56,0.00013698,2]
[422810725,1779441045000,-500.0,0.00013698,2]
[422810721,1779441045000,-713.56,0.00013698,2]
[422810726,1779441045000,-713.56,0.00013698,2]
[422810738,1779441045000,-713.56,0.00013698,2]
[422810728,1779441045000,-713.56,0.00013698,2]
[422810729,1779441045000,-500.0,0.00013698,2]
[422810727,1779441045000,-500.0,0.00013698,2]
[422810736,1779441045000,-713.56,0.00013698,2]
[422810732,1779441045000,-713.56,0.00013698,2]
[422810733,1779441045000,-382.94224013,0.00013698,2]
[422810734,1779441045000,-713.56,0.00013698,2]
[422810730,1779441045000,-713.56,0.00013698,2]
[422810735,1779441045000,-713.56,0.00013698,2]
[422810774,1779441045000,-500.0,0.00013698,2]
[422810814,1779441045000,-373.63891721,0.00013698,2]
[422810771,1779441045000,-500.0,0.00013698,2]
[422810796,1779441045000,-500.0,0.00013698,2]
[422810802,1779441045000,-500.0,0.00013698,2]
[422810797,1779441045000,-500.0,0.00013698,2]
[422810800,1779441045000,-500.0,0.00013698,2]
[422810799,1779441045000,-492.75689942,0.00013698,2]
[422810801,1779441045000,-423.58955701,0.00013698,2]
[422810804,1779441045000,-500.0,0.00013698,2]
[422810805,1779441045000,-500.0,0.00013698,2]
[422810809,1779441045000,-500.0,0.00013698,2]
[422810807,1779441045000,-500.0,0.00013698,2]
[422810808,1779441045000,-500.0,0.00013698,2]
[422810810,1779441045000,-500.0,0.00013698,2]
[422810822,1779441045000,-500.0,0.00013698,2]
[422810806,1779441045000,-500.0,0.00013698,2]
[422810815,1779441045000,-500.0,0.00013698,2]
[422810811,1779441045000,-500.0,0.00013698,2]
[422810812,1779441045000,-500.0,0.00013698,2]
[422810813,1779441045000,-500.0,0.00013698,2]
[422810817,1779441045000,-500.0,0.00013698,2]
[422810818,1779441045000,-500.0,0.00013698,2]
[422810819,1779441045000,-500.0,0.00013698,2]
[422810821,1779441045000,-500.0,0.00013698,2]
[422810820,1779441045000,-500.0,0.00013698,2]
[422810823,1779441045000,-510.74292638,0.00013698,2]
[422810763,1779441045000,-500.0,0.00013698,2]
[422810803,1779441045000,-500.0,0.00013698,2]
[422810798,1779441045000,-500.0,0.00013698,2]
[422810816,1779441045000,-500.0,0.00013698,2]
[422810795,1779441045000,-500.0,0.00013698,2]
[422810794,1779441045000,-500.0,0.00013698,2]
[422810769,1779441045000,-500.0,0.00013698,2]
[422810765,1779441045000,-500.0,0.00013698,2]
[422810768,1779441045000,-500.0,0.00013698,2]
[422810770,1779441045000,-500.0,0.00013698,2]
[422810766,1779441045000,-500.0,0.00013698,2]
[422810775,1779441045000,-500.0,0.00013698,2]
[422810787,1779441045000,-500.0,0.00013698,2]
[422810776,1779441045000,-500.0,0.00013698,2]
[422810778,1779441045000,-500.0,0.00013698,2]
[422810777,1779441045000,-500.0,0.00013698,2]
[422810781,1779441045000,-500.0,0.00013698,2]
[422810767,1779441045000,-500.0,0.00013698,2]
[422810780,1779441045000,-500.0,0.00013698,2]
[422810779,1779441045000,-500.0,0.00013698,2]
[422810788,1779441045000,-500.0,0.00013698,2]
[422810792,1779441045000,-500.0,0.00013698,2]
[422810791,1779441045000,-500.0,0.00013698,2]
[422810793,1779441045000,-500.0,0.00013698,2]
[422810789,1779441045000,-500.0,0.00013698,2]
[422810790,1779441045000,-500.0,0.00013698,2]
[422810784,1779441045000,-500.0,0.00013698,2]
[422810783,1779441045000,-500.0,0.00013698,2]
[422810782,1779441045000,-500.0,0.00013698,2]
[422810785,1779441045000,-500.0,0.00013698,2]
[422810786,1779441045000,-500.0,0.00013698,2]
[422810859,1779441046000,-904.721416,0.00013699,2]
[422810855,1779441046000,-904.721416,0.00013699,2]
[422810856,1779441046000,-904.721416,0.00013699,2]
[422810857,1779441046000,-904.721416,0.00013699,2]
[422810860,1779441046000,-904.721416,0.00013699,2]
[422810858,1779441046000,-904.721416,0.00013699,2]
[422810848,1779441046000,-904.721416,0.00013699,2]
[422810850,1779441046000,-904.721416,0.00013699,2]
[422810861,1779441046000,-904.721416,0.00013699,2]
[422810863,1779441046000,-904.721416,0.00013699,2]
[422810868,1779441046000,-151.0,0.00013699,2]
[422810867,1779441046000,-151.0,0.00013699,2]
[422810865,1779441046000,-904.721416,0.00013699,2]
[422810870,1779441046000,-151.0,0.00013699,2]
[422810866,1779441046000,-904.721409,0.00013699,2]
[422810864,1779441046000,-904.721416,0.00013699,2]
[422810854,1779441046000,-904.721416,0.00013699,2]
[422810869,1779441046000,-151.0,0.00013699,2]
[422810862,1779441046000,-904.721416,0.00013699,2]
[422810846,1779441046000,-904.721416,0.00013699,2]
[422810831,1779441046000,-500.0,0.00013698,2]
[422810842,1779441046000,-904.721416,0.00013699,2]
[422810871,1779441046000,-151.0,0.00013699,2]
[422810825,1779441046000,-500.0,0.00013698,2]
[422810826,1779441046000,-500.0,0.00013698,2]
[422810827,1779441046000,-500.0,0.00013698,2]
[422810824,1779441046000,-500.0,0.00013698,2]
[422810840,1779441046000,-151.0,0.00013699,2]
[422810829,1779441046000,-500.0,0.00013698,2]
[422810839,1779441046000,-200.0,0.00013699,2]
[422810852,1779441046000,-904.721416,0.00013699,2]
[422810828,1779441046000,-500.0,0.00013698,2]
[422810834,1779441046000,-205.0,0.00013698,2]
[422810835,1779441046000,-205.0,0.00013698,2]
[422810833,1779441046000,-508.99758767,0.00013698,2]
[422810837,1779441046000,-168.85,0.00013699,2]
[422810832,1779441046000,-500.0,0.00013698,2]
[422810838,1779441046000,-2500.0,0.00013699,2]
[422810841,1779441046000,-904.721416,0.00013699,2]
[422810844,1779441046000,-904.721416,0.00013699,2]
[422810830,1779441046000,-500.0,0.00013698,2]
[422810872,1779441046000,-151.0,0.00013699,2]
[422810896,1779441046000,-153.12137068,0.00013859,2]
[422810873,1779441046000,-151.0,0.00013699,2]
[422810903,1779441046000,-530.30207749,0.00014,2]
[422810874,1779441046000,-151.0,0.00013699,2]
[422810898,1779441046000,-192.56304368,0.00013937,2]
[422810899,1779441046000,-350.0,0.00013961,2]
[422810902,1779441046000,-4230.41844668,0.00014,2]
[422810908,1779441046000,-168.85,0.00014041,2]
[422810918,1779441046000,-3746.61837292,0.0001425,2]
[422810909,1779441046000,-641.16,0.000141,2]
[422810900,1779441046000,-3379.47,0.00013974,2]
[422810907,1779441046000,-1588.0,0.0001404,2]
[422810911,1779441046000,-151.0,0.00014125,2]
[422810910,1779441046000,-152.0,0.0001412,8]
[422810915,1779441046000,-6627.480786,0.00014176,2]
[422810912,1779441046000,-300.0,0.00014127,2]
[422810913,1779441046000,-209233.22535279,0.00014128,2]
[422810917,1779441046000,-163.390817,0.00014247,2]
[422810914,1779441046000,-167227.0645368,0.00014176,2]
[422810919,1779441046000,-3964.21238912,0.0001425,2]
[422810916,1779441046000,-712.6460433,0.0001424,2]
[422810906,1779441046000,-5425.72254372,0.00014032,2]
[422810901,1779441046000,-34637.71694851,0.0001399,2]
[422810879,1779441046000,-350.0,0.0001381,2]
[422810877,1779441046000,-1542.0,0.0001372,2]
[422810876,1779441046000,-154.0,0.00013699,2]
[422810881,1779441046000,-206.728,0.00013838,2]
[422810878,1779441046000,-1424.0,0.0001372,2]
[422810905,1779441046000,-313.897959,0.00014,2]
[422810880,1779441046000,-150.0,0.00013838,2]
[422810882,1779441046000,-238.138,0.00013838,2]
[422810885,1779441046000,-150.146,0.00013838,2]
[422810884,1779441046000,-150.635,0.00013838,2]
[422810886,1779441046000,-250.0,0.00013838,2]
[422810888,1779441046000,-151.223,0.00013838,2]
[422810890,1779441046000,-626.866,0.00013838,2]
[422810889,1779441046000,-3553.962,0.00013838,2]
[422810891,1779441046000,-1355.0,0.00013838,2]
[422810883,1779441046000,-192.979,0.00013838,2]
[422810892,1779441046000,-927.0,0.00013838,2]
[422810894,1779441046000,-164.916,0.00013838,2]
[422810904,1779441046000,-250.0,0.00014,2]
[422810887,1779441046000,-151.0,0.00013838,2]
[422810875,1779441046000,-155.8530359,0.00013699,2]
[422810927,1779441047000,-4617.790745,0.0001425,2]
[422810931,1779441047000,-163.0,0.0001436,2]
[422810924,1779441047000,-419.049,0.00013679,2]
[422810930,1779441047000,-1049.2036299,0.00014346,2]
[422810926,1779441047000,-36868.92071751,0.0001425,2]
[422810928,1779441047000,-150.0,0.0001425,2]
[422810920,1779441047000,-4748.66909953,0.0001425,2]
[422810921,1779441047000,-722.8955016,0.0001425,2]
[422810925,1779441047000,-282732.42499533,0.0001425,2]
[422810934,1779441047000,-163.0,0.0001436,2]
[422810929,1779441047000,-818.33393207,0.0001425,2]
[422810935,1779441047000,-1588.0,0.0001436,2]
[422810944,1779441047000,-3987.0383552,0.00014446,2]
[422810943,1779441047000,-1932.2,0.00014446,2]
[422810941,1779441047000,-5641.3033253,0.00014446,2]
[422810942,1779441047000,-3399.24628009,0.00014446,2]
[422810940,1779441047000,-1086.5436573,0.00014445,2]
[422810932,1779441047000,-1588.0,0.0001436,2]
[422810939,1779441047000,-192.56304368,0.00014418,2]
[422810936,1779441047000,-163.0,0.0001436,2]
[422810938,1779441047000,-1237.82230924,0.000144,2]
[422810933,1779441047000,-2337.0,0.0001436,2]
[422810937,1779441047000,-168.85,0.00014384,2]
[422810989,1779441135000,-281.09,0.00011962,2]
[422810990,1779441239000,150.0,0.00015,120]
[422810991,1779441369000,771.53,0.00028082,120]
[422810992,1779441388000,152.0,0.00011204,7]
[422810993,1779441389000,152.0,0.00011204,7]
[422810994,1779441428000,150.0,0.00015,120]
[422810995,1779441468000,-151.78567293,0.00010579,2]
[422810997,1779441557000,19005.49282112,8e-05,2]
[422810998,1779441616000,178.0,0.00015,120]
[422811000,1779441704000,395.46543905,7.888e-05,2]
[422811002,1779441724000,1495.3,6.591e-05,2]
[422811001,1779441724000,1495.3,6.274e-05,2]
[422811006,1779441725000,1495.3,7.86e-05,2]
[422811005,1779441725000,1495.3,7.543e-05,2]
[422811004,1779441725000,1495.3,7.226e-05,2]
[422811003,1779441725000,1495.3,6.908e-05,2]
[422811007,1779441779000,888.0,0.00028082,120]
[422811009,1779441801000,444.0,0.00028082,120]
[422811008,1779441801000,-281.09,8.177e-05,2]
[422811010,1779441807000,555.0,0.00028082,120]
[422811011,1779441820000,555.0,0.00028082,120]
[422811014,1779441936000,-156.82634297,8.177e-05,2]
[422811016,1779442133000,2725.85,0.00028082,120]
[422811015,1779442133000,-585.56,8.177e-05,2]
[422811017,1779442140000,1000.0,0.00028081,120]
[422811018,1779442152000,152.0,0.00011204,7]
[422811021,1779442153000,-879.40766077,8.495e-05,2]
[422811020,1779442153000,-215.27762834,8.251e-05,2]
[422811019,1779442153000,-471.82365703,8.177e-05,2]
[422811023,1779442172000,174.85,7.427e-05,2]
[422811022,1779442172000,-411.49504602,8.495e-05,2]
[422811037,1779442231000,-1495.3,9.446e-05,2]
[422811042,1779442231000,-417.51182976,9.686e-05,2]
[422811043,1779442231000,-971.72153587,9.686e-05,2]
[422811044,1779442231000,-171.66619678,9.686e-05,2]
[422811041,1779442231000,-14612.10043759,9.686e-05,2]
[422811045,1779442231000,-1200.0,9.738e-05,2]
[422811039,1779442231000,-303.8818997,9.666e-05,2]
[422811040,1779442231000,-2679.69106844,9.666e-05,2]
[422811036,1779442231000,-500.0,9.316e-05,2]
[422811034,1779442231000,-3767.0,9.213e-05,2]
[422811033,1779442231000,-1495.3,9.129e-05,2]
[422811035,1779442231000,-150.0,9.272e-05,2]
[422811032,1779442231000,-250.0,8.995e-05,2]
[422811030,1779442231000,-1495.3,8.812e-05,2]
[422811031,1779442231000,-208.7374384,8.812e-05,2]
[422811046,1779442231000,-1000.0,9.739e-05,2]
[422811027,1779442231000,-204.39729321,8.495e-05,2]
[422811028,1779442231000,-174.85,8.665e-05,2]
[422811038,1779442231000,-1263.42703186,9.666e-05,2]
[422811047,1779442231000,-118.91294865,9.764e-05,2]
[422811029,1779442231000,-468.98168122,8.801e-05,2]
[422811048,1779442231000,-700.37599953,9.764e-05,2]
[422811050,1779442231000,-2435.78,9.799e-05,2]
[422811067,1779442231000,-362.63,0.00010579,2]
[422811068,1779442231000,-173.034,0.00010579,2]
[422811066,1779442231000,-1495.3,0.00010398,2]
[422811063,1779442231000,-555.0,0.000101,2]
[422811064,1779442231000,-222.0,0.000101,2]
[422811065,1779442231000,-25089.02212308,0.0001034,2]
[422811061,1779442231000,-888.0,0.000101,2]
[422811059,1779442231000,-1495.3,0.00010081,2]
[422811062,1779442231000,-444.0,0.000101,2]
[422811057,1779442231000,-4698.65931572,0.0001,2]
[422811060,1779442231000,-262.70173205,0.000101,2]
[422811052,1779442231000,-174.85,9.903e-05,2]
[422811055,1779442231000,-1587.32645542,0.0001,2]
[422811054,1779442231000,-1952.83257563,0.0001,2]
[422811051,1779442231000,-205.0,9.8e-05,2]
[422811049,1779442231000,-676.01105182,9.764e-05,2]
[422811056,1779442231000,-3101.04823885,0.0001,2]
[422811058,1779442231000,-150.0,0.0001,2]
[422811053,1779442231000,-150.0,9.999e-05,2]
[422811079,1779442232000,-584.0,0.000107,2]
[422811070,1779442232000,-150.16,0.00010623,2]
[422811071,1779442232000,-153.12137068,0.00010647,2]
[422811072,1779442232000,-500.0,0.00010699,2]
[422811073,1779442232000,-14557.77336135,0.000107,2]
[422811074,1779442232000,-6278.08514418,0.000107,2]
[422811075,1779442232000,-1711.23017621,0.000107,2]
[422811078,1779442232000,-314.20895932,0.000107,2]
[422811077,1779442232000,-1149.99016759,0.000107,2]
[422811076,1779442232000,-413.48160874,0.000107,2]
[422811085,1779442232000,-2472.73499632,0.000107,2]
[422811084,1779442232000,-3200.41564869,0.000107,2]
[422811087,1779442232000,-385.00293256,0.000107,2]
[422811080,1779442232000,-2649.0,0.000107,2]
[422811082,1779442232000,-8073.70803725,0.000107,2]
[422811086,1779442232000,-1512.86999631,0.000107,2]
[422811081,1779442232000,-1216.57072602,0.000107,2]
[422811083,1779442232000,-1049.24108504,0.000107,2]
[422811088,1779442232000,-146397.93962243,0.000107,2]
[422811089,1779442232000,-947.66880428,0.000107,2]
[422811104,1779442237000,-199.69955839,8.812e-05,2]
[422811105,1779442237000,-73.35378692,0.000107,2]
[422811107,1779442237000,-1550.00611907,0.000107,2]
[422811108,1779442237000,-39813.68421793,0.000107,2]
[422811106,1779442237000,-1352.71174491,0.000107,2]
[422811158,1779442238000,-150.0,0.00012896,2]
[422811138,1779442238000,-1495.3,0.00012302,2]
[422811144,1779442238000,-150.0,0.00012537,2]
[422811148,1779442238000,-1488.55,0.00012893,2]
[422811147,1779442238000,-218.99,0.00012811,2]
[422811149,1779442238000,-150.0,0.00012896,2]
[422811146,1779442238000,-7175.45058851,0.00012633,2]
[422811161,1779442238000,-150.0,0.00012896,2]
[422811156,1779442238000,-150.42432873,0.00012896,2]
[422811157,1779442238000,-150.0,0.00012896,2]
[422811153,1779442238000,-150.0,0.00012896,2]
[422811151,1779442238000,-150.0,0.00012896,2]
[422811174,1779442238000,-736.0,0.00013309,2]
[422811160,1779442238000,-150.0,0.00012896,2]
[422811159,1779442238000,-150.0,0.00012896,2]
[422811162,1779442238000,-3767.0,0.00012898,2]
[422811164,1779442238000,-151.86712148,0.00012963,2]
[422811163,1779442238000,-331.91,0.00012908,2]
[422811165,1779442238000,-200.0,0.00012983,2]
[422811167,1779442238000,-500.0,0.00013,2]
[422811166,1779442238000,-1500.01480014,0.00013,15]
[422811173,1779442238000,-150.16,0.00013279,2]
[422811170,1779442238000,-150.0,0.00013135,2]
[422811143,1779442238000,-4810.77,0.00012528,2]
[422811155,1779442238000,-150.0,0.00012896,2]
[422811140,1779442238000,-1884.07,0.00012364,2]
[422811115,1779442238000,-255.0,0.00010999,2]
[422811139,1779442238000,-919.84,0.00012348,2]
[422811113,1779442238000,-3813.61725716,0.000109,2]
[422811110,1779442238000,-330517.45041569,0.000107,2]
[422811114,1779442238000,-150.0,0.00010959,2]
[422811111,1779442238000,-1503.0,0.00010712,2]
[422811112,1779442238000,-1495.3,0.00010716,2]
[422811109,1779442238000,-3957.0,0.000107,2]
[422811117,1779442238000,-7175.45058856,0.00011099,2]
[422811116,1779442238000,-1495.3,0.00011033,2]
[422811118,1779442238000,-7175.45058851,0.00011099,2]
[422811121,1779442238000,-174.85,0.00011141,2]
[422811123,1779442238000,-3813.61725714,0.00011228,2]
[422811141,1779442238000,-3813.61725714,0.00012452,2]
[422811125,1779442238000,-1495.3,0.0001135,2]
[422811168,1779442238000,-7175.45058851,0.00013036,2]
[422811131,1779442238000,-3813.61725714,0.0001184,2]
[422811132,1779442238000,-151.86712148,0.00011902,2]
[422811129,1779442238000,-1495.3,0.00011667,2]
[422811128,1779442238000,-7175.45058851,0.00011423,2]
[422811134,1779442238000,-1495.3,0.00011985,2]
[422811135,1779442238000,-433.0,0.00012099,2]
[422811133,1779442238000,-150.16,0.00011951,2]
[422811145,1779442238000,-200.0,0.00012589,2]
[422811136,1779442238000,-7175.45058851,0.00012229,2]
[422811137,1779442238000,-160.0,0.00012276,2]
[422811130,1779442238000,-7175.45058851,0.00011826,2]
[422811171,1779442238000,-628.297,0.00013179,2]
[422811127,1779442238000,-645.78955773,0.000114,2]
[422811172,1779442238000,-331.91,0.0001323,2]
[422811204,1779442238000,-572.1,0.00013698,2]
[422811205,1779442238000,-572.1,0.00013698,2]
[422811206,1779442238000,-572.1,0.00013698,2]
[422811208,1779442238000,-572.1,0.00013698,2]
[422811207,1779442238000,-572.1,0.00013698,2]
[422811209,1779442238000,-572.1,0.00013698,2]
[422811210,1779442238000,-572.33172659,0.00013698,2]
[422811211,1779442238000,-3268.97,0.00013698,2]
[422811215,1779442238000,-3268.97,0.00013698,2]
[422811212,1779442238000,-3268.97,0.00013698,2]
[422811214,1779442238000,-3268.97,0.00013698,2]
[422811218,1779442238000,-3268.97,0.00013698,2]
[422811213,1779442238000,-3268.97,0.00013698,2]
[422811219,1779442238000,-3268.97,0.00013698,2]
[422811217,1779442238000,-3268.97,0.00013698,2]
[422811220,1779442238000,-3268.97,0.00013698,2]
[422811221,1779442238000,-3268.97,0.00013698,2]
[422811222,1779442238000,-3268.97,0.00013698,2]
[422811225,1779442238000,-3268.97,0.00013698,2]
[422811226,1779442238000,-3268.97,0.00013698,2]
[422811224,1779442238000,-3268.97,0.00013698,2]
[422811223,1779442238000,-3268.97,0.00013698,2]
[422811227,1779442238000,-3268.97,0.00013698,2]
[422811228,1779442238000,-3268.97,0.00013698,2]
[422811169,1779442238000,-3813.61725714,0.00013064,2]
[422811202,1779442238000,-572.1,0.00013698,2]
[422811203,1779442238000,-572.1,0.00013698,2]
[422811216,1779442238000,-3268.97,0.00013698,2]
[422811200,1779442238000,-572.1,0.00013698,2]
[422811201,1779442238000,-572.1,0.00013698,2]
[422811175,1779442238000,-166.66,0.00013372,2]
[422811176,1779442238000,-150.0,0.00013374,2]
[422811178,1779442238000,-7175.45058851,0.00013439,2]
[422811177,1779442238000,-2315.0,0.000134,2]
[422811181,1779442238000,-19148.12,0.00013608,2]
[422811179,1779442238000,-331.91,0.00013553,2]
[422811180,1779442238000,-1174.72052869,0.00013599,2]
[422811185,1779442238000,-3813.61725714,0.00013676,2]
[422811183,1779442238000,-150.0,0.00013612,2]
[422811184,1779442238000,-150.0,0.00013612,2]
[422811187,1779442238000,-572.1,0.00013698,2]
[422811186,1779442238000,-500.28174121,0.00013698,2]
[422811182,1779442238000,-660.05,0.00013608,2]
[422811199,1779442238000,-572.1,0.00013698,2]
[422811194,1779442238000,-572.1,0.00013698,2]
[422811197,1779442238000,-572.1,0.00013698,2]
[422811198,1779442238000,-572.1,0.00013698,2]
[422811190,1779442238000,-572.1,0.00013698,2]
[422811188,1779442238000,-572.1,0.00013698,2]
[422811189,1779442238000,-572.1,0.00013698,2]
[422811195,1779442238000,-572.1,0.00013698,2]
[422811196,1779442238000,-572.1,0.00013698,2]
[422811192,1779442238000,-572.1,0.00013698,2]
[422811193,1779442238000,-572.1,0.00013698,2]
[422811191,1779442238000,-572.1,0.00013698,2]
[422811266,1779442239000,-1884.07,0.00013909,2]
[422811273,1779442239000,-350.0,0.0001393,2]
[422811270,1779442239000,-1355.0,0.00013912,2]
[422811268,1779442239000,-150.268,0.00013912,2]
[422811265,1779442239000,-771.0,0.000139,2]
[422811257,1779442239000,-154.0,0.00013868,2]
[422811263,1779442239000,-350.0,0.00013894,2]
[422811260,1779442239000,-682.65389158,0.0001389,2]
[422811258,1779442239000,-155.8530359,0.00013868,2]
[422811256,1779442239000,-150.0,0.00013851,2]
[422811269,1779442239000,-1238.085,0.00013912,2]
[422811264,1779442239000,-1000.0,0.000139,2]
[422811272,1779442239000,-352.76895964,0.00013917,2]
[422811285,1779442239000,-500.0,0.00014071,2]
[422811275,1779442239000,-34637.71694851,0.0001399,2]
[422811274,1779442239000,-350.0,0.00013935,2]
[422811276,1779442239000,-250.0,0.00014,2]
[422811267,1779442239000,-1271.0,0.00013912,2]
[422811278,1779442239000,-1174.72052864,0.00014033,2]
[422811277,1779442239000,-313.897959,0.00014,2]
[422811280,1779442239000,-150.0,0.00014071,2]
[422811279,1779442239000,-168.12,0.00014041,2]
[422811282,1779442239000,-500.0,0.00014071,2]
[422811281,1779442239000,-168.29697578,0.00014071,2]
[422811284,1779442239000,-500.0,0.00014071,2]
[422811255,1779442239000,-7175.45058851,0.00013843,2]
[422811271,1779442239000,-164.916,0.00013912,2]
[422811261,1779442239000,-331.9907,0.0001389,2]
[422811229,1779442239000,-3268.97,0.00013698,2]
[422811259,1779442239000,-331.91,0.00013876,2]
[422811288,1779442239000,-500.0,0.00014071,2]
[422811230,1779442239000,-3268.97,0.00013698,2]
[422811231,1779442239000,-3268.97,0.00013698,2]
[422811232,1779442239000,-3268.97,0.00013698,2]
[422811237,1779442239000,-500.0,0.00013698,2]
[422811233,1779442239000,-3268.97,0.00013698,2]
[422811238,1779442239000,-500.0,0.00013698,2]
[422811235,1779442239000,-500.0,0.00013698,2]
[422811236,1779442239000,-500.0,0.00013698,2]
[422811241,1779442239000,-999.99,0.00013699,2]
[422811234,1779442239000,-3269.18168498,0.00013698,2]
[422811239,1779442239000,-20827.58,0.00013699,2]
[422811262,1779442239000,-919.84,0.00013892,2]
[422811240,1779442239000,-299.99,0.00013699,2]
[422811242,1779442239000,-9999.99,0.00013699,2]
[422811248,1779442239000,-2500.0,0.00013699,2]
[422811247,1779442239000,-200.0,0.00013699,2]
[422811249,1779442239000,-168.12,0.00013699,2]